bitfinex/quotes_ETHUSD_20240823
["timestamp","ask_amount","ask_price","bid_price","bid_amount"]
[1724436300436,10.34814,2738.0,2736.8,3.65379]
[1724436300607,10.34814,2738.0,2737.1,3.65339]
[1724436300936,10.34814,2738.0,2736.7,7.30791]
[1724436300937,14.00047,2738.0,2736.7,7.30791]
[1724436301137,3.65271,2737.7,2736.5,3.65423]
[1724436301337,6.20614197,2737.8,2736.7,3.65395]
[1724436301338,10.6587852,2737.6,2736.7,3.65395]
[1724436301640,10.6587852,2737.6,2736.7,3.65394]
[1724436302140,10.6587852,2737.6,2736.5,3.65423]
[1724436302297,3.0,2737.5,2736.5,3.65423]
[1724436302735,3.0,2737.5,2736.7,3.65403]
[1724436302940,1.36587852,2737.5,2736.7,3.65403]
[1724436303149,1.36587852,2737.5,2736.5,3.65424]
[1724436303150,1.36587852,2737.5,2736.6,3.65412]
[1724436303436,1.36587852,2737.5,2736.7,3.65402]
[1724436303677,1.36587852,2737.5,2736.5,3.65421]
[1724436304299,13.33524,2737.3,2736.0,3.65489]
[1724436304557,13.33524,2737.3,2735.3,9.7186]
[1724436304558,9.3476,2736.9,2735.8,3.65517]
[1724436304716,9.3476,2736.9,2735.3,13.37449]
[1724436304717,9.3476,2736.9,2736.1,3.65482]
[1724436305065,9.3476,2736.9,2735.9,3.65504]
[1724436305252,4.5553742,2736.8,2735.8,3.65523]
[1724436306039,4.5553742,2736.8,2735.9,3.6551]
[1724436306268,9.5787,2736.5,2735.6,3.65549]
[1724436306407,9.5787,2736.5,2734.9,13.07304]
[1724436306603,9.5787,2736.5,2735.3,3.65579]
[1724436306802,5.01888852,2737.5,2735.3,3.65579]
[1724436306803,9.1645,2737.0,2736.8,3.65389]
[1724436307101,9.1645,2737.0,2736.6,3.65413]
[1724436307299,9.1645,2737.0,2736.5,3.6543]
[1724436307833,9.1645,2737.0,2736.3,3.65454]
[1724436308146,9.1645,2737.0,2736.4,3.65433]
[1724436308508,9.1645,2737.0,2735.8,3.65516]
[1724436308708,9.1645,2737.0,2735.9,0.915516]
[1724436308964,3.65163,2738.5,2737.2,3.65336]
[1724436308965,9.4483,2738.2,2737.2,3.65336]
[1724436309152,9.4483,2738.2,2737.1,3.65347]
[1724436309358,9.4483,2738.2,2736.9,3.65371]
[1724436309739,13.10034,2738.2,2736.9,3.65371]
[1724436310043,9.6622,2738.0,2737.0,3.65359]
[1724436310556,9.6622,2738.0,2737.5,3.65296]
[1724436310890,6.2661774,2739.8,2736.9,9.7996]
[1724436310891,9.9041,2738.5,2736.9,9.7996]
[1724436311087,9.9041,2738.5,2737.0,3.55]
[1724436311239,9.9041,2738.5,2737.1,3.65342]
[1724436311439,9.9041,2738.5,2737.8,3.65247]
[1724436311870,9.9041,2738.5,2737.6,3.6528]
[1724436312082,9.9041,2738.5,2737.0,3.65352]
[1724436312083,3.65189,2738.4,2737.0,3.65352]
[1724436312238,9.7813,2738.3,2736.6,3.65406]
[1724436312442,9.7813,2738.2,2736.5,12.5247]
[1724436312666,4.6304,2738.1,2736.7,3.65392]
[1724436312851,3.56068557,2738.8,2736.5,3.65426]
[1724436313052,3.56068557,2738.8,2736.7,3.65399]
[1724436313053,3.65199,2738.3,2736.7,3.65399]
[1724436313479,6.65144,2738.7,2735.9,9.2344]
[1724436313480,3.0,2738.7,2735.9,9.2344]
[1724436313679,3.0,2738.7,2737.3,3.6532]
[1724436313680,3.65169,2738.5,2737.3,3.6532]
[1724436314005,0.365169,2738.4,2737.3,3.6532]
[1724436314140,0.365169,2738.4,2737.1,3.65349]
[1724436314341,0.365169,2738.4,2737.2,3.65335]
[1724436314556,0.365169,2738.4,2737.4,3.65299]
[1724436314735,3.64993,2739.8,2737.9,3.65243]
[1724436314736,3.65086,2739.1,2737.9,3.65243]
[1724436314981,3.65086,2739.1,2736.7,6.65402]
[1724436314982,3.65086,2739.1,2737.7,3.65268]
[1724436315163,3.65126,2738.8,2737.6,3.65274]
[1724436315364,3.65126,2738.8,2737.3,13.28712]
[1724436315678,3.65099,2739.0,2737.3,9.634]
[1724436315988,9.5909,2738.8,2737.7,3.65266]
[1724436316155,9.5909,2738.8,2737.5,7.30575]
[1724436316358,9.5909,2738.8,2737.7,3.65259]
[1724436316894,9.5909,2738.8,2737.5,7.30575]
[1724436317069,9.5909,2738.8,2737.5,3.65287]
[1724436317414,9.5909,2738.8,2737.3,9.634]
[1724436317415,9.5909,2738.8,2737.6,0.461627]
[1724436317609,9.5909,2738.8,2737.7,4.20264]
[1724436317753,9.5909,2738.8,2737.5,3.65284]
[1724436318108,9.5909,2738.8,2737.6,7.30554]
[1724436318314,9.5909,2738.8,2737.6,3.65274]
[1724436318474,9.5909,2738.8,2737.7,3.65261]
[1724436318792,10.9151,2738.8,2737.8,3.65255]
[1724436318990,10.9151,2738.8,2737.1,6.65345]
[1724436319195,10.9151,2738.8,2737.9,7.30477]
[1724436319380,9.5909,2738.8,2737.9,3.65235]
[1724436319553,9.5909,2738.8,2737.4,3.65299]
[1724436319754,9.5909,2738.8,2737.7,3.65256]
[1724436319962,9.5909,2738.8,2737.4,3.65301]
[1724436320227,1.324205,2738.7,2737.4,3.65301]
[1724436320390,4.975635,2738.7,2737.2,7.30658]
[1724436320553,3.65172,2738.5,2737.2,3.65327]
[1724436320757,4.975635,2738.7,2737.2,3.65327]
[1724436320957,3.65191,2738.3,2737.0,7.30709]
[1724436321151,9.6511,2738.1,2737.0,4.384229]
[1724436322164,9.6511,2738.1,2737.0,3.65352]
[1724436322501,9.6511,2738.1,2736.9,3.65366]
[1724436322701,3.65244,2737.9,2736.7,3.65402]
[1724436322961,3.65244,2737.9,2736.3,3.65447]
[1724436322962,9.4247,2737.6,2736.3,3.65447]
[1724436323195,9.4247,2737.6,2736.6,3.65415]
[1724436323376,9.4247,2737.6,2736.5,3.65418]
[1724436323593,9.1859,2738.1,2737.1,3.65345]
[1724436323792,9.1859,2738.1,2737.0,3.65351]
[1724436324012,1.3203141,2738.0,2737.0,3.65351]
[1724436324220,1.3203141,2738.0,2737.1,3.65349]
[1724436324414,1.3203141,2738.0,2736.9,3.65368]
[1724436324715,1.3203141,2738.0,2736.8,3.65377]
[1724436324871,3.65253,2737.9,2736.6,3.65415]
[1724436325076,9.6685,2737.7,2736.4,7.30873]
[1724436325287,13.32126,2737.7,2736.5,3.6543]
[1724436325487,13.32126,2737.7,2735.6,6.2661774]
[1724436325488,9.6685,2737.7,2736.2,3.65465]
[1724436325709,13.3216,2737.4,2736.2,3.65465]
[1724436325894,9.6685,2737.4,2736.2,3.65462]
[1724436326151,1.332148,2737.3,2736.2,4.385577]
[1724436326278,4.332148,2737.3,2735.8,3.65519]
[1724436326477,9.3681,2737.0,2735.8,3.65519]
[1724436326733,9.3681,2737.0,2735.9,3.65509]
[1724436327011,9.3681,2737.0,2736.0,0.731028]
[1724436327232,9.3681,2737.0,2735.9,3.6551]
[1724436327625,7.985408,2737.3,2735.3,3.65581]
[1724436327626,3.65427,2736.6,2735.3,3.65581]
[1724436327908,10.5983254,2737.3,2735.1,3.65611]
[1724436327909,13.3968,2736.5,2735.1,3.65611]
[1724436328243,9.7425,2736.2,2735.0,3.65629]
[1724436328548,9.7425,2736.2,2734.0,0.43088623]
[1724436328549,13.39721,2736.2,2734.6,3.65682]
[1724436328687,12.1472,2736.1,2734.5,3.65697]
[1724436328991,1.21472,2736.0,2734.6,0.365697]
[1724436329688,9.1472,2736.1,2735.2,3.65593]
[1724436329876,9.1472,2736.1,2735.3,3.7289827]
[1724436330074,9.1472,2736.1,2734.6,0.365697]
[1724436330278,12.80204,2736.1,2734.7,3.65669]
[1724436330478,6.65497,2736.0,2734.7,3.65669]
[1724436330694,9.1472,2735.8,2734.8,0.4022387]
[1724436330921,9.1272,2735.8,2734.6,0.365697]
[1724436331222,6.65537,2735.7,2734.2,3.65736]
[1724436331537,1.580217,2735.9,2733.9,3.65773]
[1724436331538,1.580217,2735.9,2734.9,3.65642]
[1724436331835,3.65498,2736.0,2734.8,3.65655]
[1724436332035,3.0,2735.9,2734.8,3.65655]
[1724436332404,3.0,2735.9,2734.6,3.65677]
[1724436332739,6.2661774,2736.8,2734.1,3.65743]
[1724436332740,4.35201,2738.3,2735.8,3.6551]
[1724436333025,3.65352,2737.1,2735.8,3.6551]
[1724436333231,3.65352,2737.1,2735.8,3.65522]
[1724436333434,3.65338,2737.2,2735.1,3.65604]
[1724436333747,3.65313,2737.4,2735.8,3.65512]
[1724436333898,9.5606,2737.3,2735.9,0.55]
[1724436334237,1.321373,2737.2,2736.0,4.075352]
[1724436334535,4.974743,2737.2,2736.0,4.075352]
[1724436334845,4.974743,2737.2,2735.4,3.6557]
[1724436334846,3.65417,2736.6,2735.3,3.65589]
[1724436335444,3.65467,2736.3,2734.9,3.65638]
[1724436335705,3.65467,2736.3,2734.6,9.7748]
[1724436335706,12.94085,2736.5,2735.1,3.65609]
[1724436335908,9.2865,2736.2,2734.7,3.65666]
[1724436336124,3.65493,2736.1,2734.7,3.65666]
[1724436336408,3.65493,2736.1,2733.7,4.79585254]
[1724436336409,3.6552,2735.9,2734.5,3.65696]
[1724436336948,9.1241,2736.6,2735.1,3.65608]
[1724436337055,9.1241,2737.0,2736.0,3.65487]
[1724436337256,9.1241,2737.0,2736.4,3.65442]
[1724436337508,0.365317,2737.3,2736.4,3.65442]
[1724436337816,0.365317,2737.3,2736.5,3.65425]
[1724436337977,0.365317,2737.3,2736.4,7.30875]
[1724436338179,0.365317,2737.3,2736.4,4.385205]
[1724436338384,9.1241,2737.4,2736.9,3.65373]
[1724436338588,0.7,2739.2,2736.9,3.65373]
[1724436338589,9.1241,2737.9,2736.9,3.65375]
[1724436338762,9.1241,2737.9,2737.3,3.65318]
[1724436338963,9.1241,2737.9,2737.0,3.65353]
[1724436339260,9.1241,2737.9,2737.3,3.65323]
[1724436339479,9.1241,2737.9,2737.2,3.65335]
[1724436339703,9.1241,2737.9,2737.0,3.65354]
[1724436339878,10.03651,2737.9,2737.0,3.65354]
[1724436340100,10.03651,2737.9,2736.4,0.730875]
[1724436340414,10.03651,2737.9,2735.1,3.85830919]
[1724436340415,3.65278,2737.7,2736.5,3.65428]
[1724436340901,3.65278,2737.7,2736.3,7.30894]
[1724436341106,12.4204,2737.6,2736.3,3.65447]
[1724436341303,9.4204,2737.4,2735.5,10.1992069]
[1724436341518,9.4204,2737.4,2736.1,3.65471]
[1724436341519,13.07353,2737.4,2736.1,3.65471]
[1724436341716,4.672649,2737.3,2736.1,3.65471]
[1724436341871,4.672649,2737.3,2735.5,9.6748]
[1724436341872,9.9973,2737.0,2735.7,3.65535]
[1724436342070,9.9973,2737.0,2735.1,3.65605]
[1724436342071,3.0,2736.9,2735.1,9.1114]
[1724436342291,3.0,2736.9,2735.7,3.65535]
[1724436342694,5.325919,2737.3,2735.7,3.65535]
[1724436342695,1.672649,2737.3,2735.7,3.6553]
[1724436343009,9.3105,2737.6,2736.8,3.65377]
[1724436343206,9.3105,2737.6,2735.9,9.4235]
[1724436343207,9.3105,2737.6,2736.5,3.65418]
[1724436343399,9.3105,2737.6,2735.9,13.07851]
[1724436343400,9.3105,2737.6,2736.4,3.65441]
[1724436343568,9.3105,2737.6,2736.3,3.65446]
[1724436343767,9.3105,2737.6,2735.9,9.4235]
[1724436343768,9.4705,2737.4,2735.9,3.65506]
[1724436344070,13.12376,2737.3,2735.7,3.65535]
[1724436344380,3.6535,2737.1,2735.8,3.65521]
[1724436344598,9.4705,2736.4,2735.2,0.365608]
[1724436344806,9.4705,2736.4,2735.3,3.65589]
[1724436344807,1.31248,2736.3,2735.3,3.65589]
[1724436345012,4.31248,2736.3,2734.5,9.901]
[1724436345187,4.31248,2736.3,2735.2,3.65599]
[1724436345369,4.31248,2736.3,2735.6,3.6554]
[1724436345370,1.31248,2736.3,2735.6,3.6554]
[1724436345571,9.4705,2736.4,2734.6,3.65682]
[1724436345781,9.4705,2736.4,2734.5,9.901]
[1724436345998,13.27718,2736.0,2734.4,3.65706]
[1724436346195,13.27718,2736.0,2734.0,3.65754]
[1724436346196,9.8637,2735.6,2734.3,3.65722]
[1724436346398,9.8637,2735.6,2734.5,3.65691]
[1724436346712,9.8637,2735.6,2733.7,15.4812774]
[1724436346713,9.8637,2735.6,2734.6,4.022501]
[1724436346915,9.8637,2735.6,2734.6,0.365691]
[1724436347104,9.8637,2735.6,2734.9,3.65633]
[1724436347309,9.8637,2735.6,2733.7,9.2151]
[1724436347475,3.0,2735.5,2734.5,3.65687]
[1724436347671,3.0,2735.5,2734.3,3.65723]
[1724436347975,13.12177,2735.2,2733.8,3.65778]
[1724436348180,3.0,2735.1,2733.9,3.65776]
[1724436348381,3.0,2735.1,2733.5,1.19237466]
[1724436348641,3.0,2735.1,2734.1,3.65747]
[1724436349142,9.4657,2735.2,2734.4,3.65707]
[1724436349276,0.94657,2735.1,2734.2,3.65735]
[1724436349880,0.94657,2735.1,2734.0,3.65761]
[1724436349881,9.4657,2735.2,2734.3,3.65723]
[1724436350375,9.4657,2735.2,2734.5,3.65695]
[1724436350605,9.4657,2735.2,2734.3,3.65723]
[1724436350818,9.4657,2735.2,2734.0,3.65758]
[1724436351017,9.4657,2735.2,2733.6,9.6594]
[1724436351174,9.4657,2735.2,2734.4,3.65709]
[1724436351378,9.4657,2735.2,2734.4,3.65704]
[1724436351815,9.4657,2735.2,2734.2,3.65736]
[1724436352074,9.4657,2735.2,2734.0,3.65762]
[1724436352075,9.4657,2735.2,2733.2,12.0925]
[1724436352315,9.4657,2735.2,2733.9,3.65777]
[1724436352547,10.71227,2735.2,2734.2,3.65736]
[1724436352720,10.71227,2735.2,2734.4,3.6571]
[1724436352931,10.71227,2735.2,2734.2,3.65736]
[1724436353119,10.71227,2735.2,2733.7,3.65792]
[1724436353323,10.71227,2735.2,2734.0,3.65763]
[1724436353540,1.071227,2735.1,2734.0,3.65763]
[1724436353891,1.071227,2735.1,2733.4,12.75088]
[1724436353892,9.3966,2735.0,2733.7,3.65794]
[1724436354092,1.071227,2735.1,2733.3,0.1301956]
[1724436354093,3.65692,2734.6,2733.3,0.1301956]
[1724436354315,9.3966,2734.5,2733.3,0.1301956]
[1724436354503,16.05361,2734.5,2733.3,0.1301956]
[1724436354702,9.3966,2734.3,2733.3,0.1301956]
[1724436354998,9.3966,2734.1,2733.3,0.1301956]
[1724436355642,9.3966,2734.6,2733.3,0.1301956]
[1724436356026,9.3966,2734.6,2733.4,9.6221]
[1724436356336,9.3966,2734.6,2733.3,0.1301956]
[1724436356337,9.3966,2734.6,2733.5,3.65829]
[1724436356557,9.5695,2734.4,2733.5,3.65829]
[1724436356751,9.5695,2734.4,2733.3,3.7887556]
[1724436356968,9.5695,2734.4,2733.6,3.65816]
[1724436357234,9.5695,2734.4,2733.6,3.65815]
[1724436357399,9.5695,2734.4,2733.3,0.1301956]
[1724436357762,9.2675,2734.9,2734.1,3.65748]
[1724436357894,9.2675,2734.9,2734.1,3.65746]
[1724436358094,9.2675,2735.6,2734.4,3.65698]
[1724436358530,9.2675,2735.6,2734.2,3.65736]
[1724436358531,3.65563,2735.5,2734.2,3.65736]
[1724436358762,9.2675,2735.6,2734.3,0.55]
[1724436359070,0.92675,2735.5,2734.4,0.420734]
[1724436359262,9.2675,2735.6,2734.5,0.55]
[1724436359465,9.2675,2735.6,2734.4,0.420734]
[1724436359466,12.92304,2735.6,2734.1,3.65749]
[1724436359676,9.2675,2735.6,2734.1,3.65747]
[1724436359967,9.2675,2735.6,2734.2,0.55]
[1724436360146,9.2675,2735.6,2734.8,3.65656]
[1724436360319,9.4865,2736.6,2735.3,3.65581]
[1724436360510,9.4865,2736.6,2735.5,3.65561]
[1724436360712,9.4865,2736.6,2735.6,3.6555]
[1724436360912,0.7,2738.4,2736.1,3.65479]
[1724436360913,9.0027,2737.4,2736.1,3.65479]
[1724436361120,3.65337,2737.2,2735.7,0.55]
[1724436361359,9.0797,2736.8,2735.6,4.20547]
[1724436361730,9.0797,2736.8,2735.6,0.55]
[1724436361935,10.345268,2737.3,2736.0,3.65485]
[1724436362180,13.998548,2737.3,2736.1,0.55]
[1724436362466,13.998548,2737.3,2736.1,4.20482]
[1724436362467,1.3998548,2737.2,2736.1,4.20482]
[1724436362759,1.3998548,2737.2,2736.1,0.55]
[1724436363114,1.3998548,2737.2,2735.3,9.1691]
[1724436363309,9.1006,2737.1,2735.4,0.55]
[1724436363559,9.1006,2737.1,2736.2,3.65457]
[1724436363712,9.1006,2737.1,2736.3,0.55]
[1724436364411,9.1006,2737.1,2736.1,0.55]
[1724436364618,9.1006,2737.1,2736.2,3.65466]
[1724436364819,9.1006,2737.1,2736.3,0.55]
[1724436365327,1.3998548,2737.2,2736.3,0.55]
[1724436365609,3.0,2737.3,2736.4,0.07308058]
[1724436365729,9.4869,2737.5,2736.5,0.55]
[1724436368230,3.0,2736.7,2735.4,3.65576]
[1724436368459,3.0,2736.7,2735.0,1.278364]
[1724436368460,3.0,2736.7,2735.2,3.656]
[1724436368763,3.0,2736.7,2734.9,9.1272]
[1724436368764,9.1504,2736.6,2734.9,9.1272]
[1724436368923,9.1504,2736.6,2735.2,3.65602]
[1724436369263,3.65461,2736.3,2735.0,3.65626]
[1724436369460,9.1504,2736.2,2735.0,3.65626]
[1724436369616,9.1504,2736.2,2734.5,9.9225]
[1724436369617,12.80512,2736.2,2734.5,9.9225]
[1724436369825,9.1504,2736.2,2734.5,9.9225]
[1724436370133,9.1504,2736.2,2735.2,3.65603]
[1724436370328,9.1504,2736.2,2735.0,3.65617]
[1724436370329,0.91504,2736.1,2735.0,3.65617]
[1724436370647,0.91504,2736.1,2735.1,0.07311045]
[1724436370971,9.93087141,2737.3,2735.1,0.07311045]
[1724436370972,9.3621,2736.9,2735.5,3.65562]
[1724436371178,13.01589,2736.9,2735.5,3.65562]
[1724436371462,3.65391,2736.8,2735.5,3.65562]
[1724436371762,3.65391,2736.8,2734.6,6.27752141]
[1724436371763,9.9896,2736.4,2735.1,3.65617]
[1724436372063,9.9896,2735.9,2734.7,3.65669]
[1724436372561,13.64472,2735.9,2734.4,3.65706]
[1724436372885,3.0,2736.2,2734.4,3.65709]
[1724436372886,3.65524,2735.8,2734.4,3.65709]
[1724436373090,9.8488,2735.2,2733.8,3.6579]
[1724436373216,1.35047,2735.1,2733.9,0.36579]
[1724436373424,4.35047,2735.1,2733.9,0.36579]
[1724436373720,4.35047,2735.1,2733.9,4.02355]
[1724436374141,4.35047,2735.1,2734.1,3.65749]
[1724436374521,4.35047,2735.1,2734.2,3.65735]
[1724436374718,9.8488,2735.2,2734.3,0.07314216]
[1724436375030,9.8488,2735.4,2734.2,3.65734]
[1724436375348,9.8488,2735.4,2733.6,12.90839]
[1724436375349,3.0,2735.3,2734.5,3.65695]
[1724436375660,3.0,2735.3,2734.6,3.6568]
[1724436375861,3.0,2735.3,2734.5,3.65695]
[1724436376164,4.28488,2735.3,2734.1,3.65747]
[1724436376367,4.28488,2735.3,2734.2,4.20735]
[1724436376530,4.28488,2735.3,2734.2,0.55]
[1724436376730,7.94079,2735.3,2734.2,0.55]
[1724436376940,4.28488,2735.3,2734.2,4.20734]
[1724436377272,9.8488,2735.4,2734.7,3.65669]
[1724436377447,9.8488,2735.4,2734.3,9.0393]
[1724436377629,9.8488,2735.4,2734.2,0.55]
[1724436377832,9.8488,2735.4,2734.3,3.65714]
[1724436378033,3.65592,2735.3,2734.2,0.55]
[1724436378271,9.6786,2735.0,2734.0,3.65754]
[1724436378482,9.6786,2735.0,2734.3,3.65714]
[1724436378640,9.6786,2735.0,2734.1,3.65746]
[1724436378839,9.6786,2735.0,2734.2,4.20737]
[1724436379372,9.6786,2735.0,2733.9,3.65773]
[1724436379583,4.333481,2734.9,2733.6,3.65817]
[1724436379805,12.75488,2734.8,2733.6,3.65817]
[1724436379945,12.75487,2734.8,2733.6,3.65817]
[1724436380142,3.0,2734.7,2733.3,0.1301956]
[1724436380437,9.0983,2734.8,2734.2,3.65736]
[1724436380634,9.8479,2735.2,2734.4,3.65708]
[1724436380864,10.83269,2735.2,2734.6,3.65679]
[1724436381068,10.83269,2735.2,2734.0,7.31514]
[1724436381256,10.83269,2735.2,2733.8,13.21098]
[1724436381572,10.83269,2735.2,2733.9,0.55]
[1724436381760,9.8479,2735.2,2734.6,3.65674]
[1724436382395,9.8479,2735.2,2734.4,3.65705]
[1724436382396,9.8479,2735.2,2734.0,3.65757]
[1724436382681,9.8479,2735.2,2734.1,0.55]
[1724436382886,3.65524,2735.8,2734.6,3.65676]
[1724436383038,3.65537,2735.7,2734.7,0.55]
[1724436383239,3.65537,2735.7,2734.0,3.65761]
[1724436383240,3.65592,2735.3,2733.0,4.03531619]
[1724436383545,3.65598,2735.3,2734.0,4.20753]
[1724436383746,3.65598,2735.3,2734.1,3.65742]
[1724436384053,0.365537,2735.6,2733.5,3.65824]
[1724436384054,3.6562,2735.1,2733.8,3.6578]
[1724436384252,9.9335,2735.2,2733.6,3.65809]
[1724436384484,9.9335,2735.2,2733.4,3.65839]
[1724436384485,9.5983,2734.6,2733.4,3.65839]
[1724436384676,3.0,2734.5,2733.5,3.6583]
[1724436384898,3.0,2734.5,2733.4,3.65839]
[1724436385231,3.0,2734.5,2733.4,3.65832]
[1724436385368,6.65703,2734.5,2733.3,3.7887356]
[1724436385568,9.5983,2734.6,2733.5,3.65828]
[1724436386008,9.5983,2734.6,2734.0,3.65756]
[1724436386226,9.5983,2734.6,2733.8,3.6578]
[1724436386566,9.5983,2734.6,2733.6,3.65813]
[1724436386767,9.5983,2734.6,2733.8,3.65787]
[1724436386964,9.5983,2734.6,2733.9,0.55]
[1724436387211,10.55813,2734.6,2733.6,3.65813]
[1724436387576,3.6563,2735.0,2733.4,4.40317256]
[1724436387577,9.5038,2735.0,2734.3,3.65715]
[1724436387902,9.5038,2735.0,2734.1,3.65747]
[1724436388218,9.5038,2735.0,2733.5,12.0686]
[1724436388219,9.5038,2735.0,2734.3,3.65714]
[1724436388383,9.1628,2735.5,2734.6,3.65673]
[1724436388583,9.1628,2735.5,2734.8,3.65646]
[1724436388983,9.1628,2735.5,2734.9,3.65641]
[1724436389181,9.1628,2735.5,2734.8,3.65656]
[1724436389782,9.1628,2735.5,2734.7,3.65659]
[1724436390080,9.1628,2735.5,2734.8,0.55]
[1724436390270,9.1628,2735.5,2734.7,4.20661]
[1724436390470,9.1628,2735.5,2734.8,4.077201]
[1724436391007,8.8128,2735.5,2734.8,0.420661]
[1724436391206,3.0,2735.4,2734.6,3.65683]
[1724436391420,3.0,2735.4,2734.2,9.3509]
[1724436391715,8.8128,2735.5,2734.7,3.65658]
[1724436391873,8.8128,2735.5,2734.8,1.281331]
[1724436393275,8.8128,2735.5,2734.8,4.937901]
[1724436393474,8.8128,2735.5,2734.8,1.281331]
[1724436394079,8.8128,2735.5,2734.8,0.55]
[1724436394406,8.8128,2735.5,2734.6,0.55]
[1724436394996,8.8128,2735.5,2734.6,4.20683]
[1724436395319,6.65581,2735.4,2734.1,3.65749]
[1724436395530,1.546861,2735.3,2734.2,4.023109]
[1724436395748,1.546861,2735.3,2734.2,0.365749]
[1724436395952,8.8128,2735.5,2734.7,3.65661]
[1724436396108,3.0,2735.4,2734.7,3.65661]
[1724436396447,3.0,2735.4,2734.5,3.65691]
[1724436396606,3.0,2735.4,2734.5,3.65686]
[1724436396810,3.0,2735.4,2734.6,4.20682]
[1724436397016,3.0,2735.4,2734.6,0.55]
[1724436397362,3.0,2735.4,2734.3,3.65716]
[1724436397542,3.0,2735.4,2734.4,4.20707]
[1724436397867,3.65593,2735.3,2734.2,0.365749]
[1724436398063,3.65593,2735.3,2733.9,3.65767]
[1724436398064,3.65629,2735.1,2733.9,3.65767]
[1724436398212,3.65629,2735.1,2734.0,3.65764]
[1724436398415,13.443193,2735.2,2734.1,3.65741]
[1724436398917,13.443193,2735.2,2733.9,3.65772]
[1724436398918,3.65636,2735.0,2733.9,3.65772]
[1724436399123,9.8028,2734.8,2733.5,3.65826]
[1724436399333,9.8028,2734.5,2733.3,3.7887356]
[1724436399559,3.0,2734.4,2733.3,3.7887356]
[1724436399865,3.0,2734.4,2733.3,0.1301956]
[1724436399866,9.8028,2734.1,2733.3,0.1301956]
[1724436400073,9.8028,2734.1,2733.3,3.7887256]
[1724436400354,9.8028,2734.1,2733.4,0.45203159]
[1724436400534,9.8028,2734.1,2733.5,3.65825]
[1724436401043,9.8028,2734.1,2733.5,3.65821]
[1724436401230,9.8028,2734.1,2733.5,7.3164]
[1724436401545,3.0,2734.4,2733.5,3.65819]
[1724436401708,3.0,2734.4,2733.9,3.65769]
[1724436401908,3.0,2734.4,2733.3,0.1301956]
[1724436402210,9.9975,2734.2,2733.3,0.1301956]
[1724436402704,9.9975,2734.2,2733.4,3.65841]
[1724436402934,9.9975,2734.2,2733.3,0.1301956]
[1724436403143,9.9975,2734.2,2733.6,3.65812]
[1724436403360,9.9975,2734.2,2733.7,4.023842]
[1724436403840,9.9975,2735.0,2734.2,3.65737]
[1724436404040,9.93673917,2736.1,2734.6,3.65673]
[1724436404041,9.9975,2735.5,2734.6,3.65673]
[1724436404241,0.99975,2735.4,2734.8,3.65656]
[1724436404464,9.9975,2735.5,2734.7,3.65667]
[1724436404788,9.9975,2735.5,2734.2,3.65732]
[1724436404966,9.9975,2735.5,2734.3,3.65722]
[1724436404967,13.65318,2735.5,2734.3,3.65722]
[1724436405148,9.5318,2735.3,2733.8,3.65786]
[1724436405354,9.5318,2735.3,2733.9,0.55]
[1724436405567,0.95318,2735.2,2734.3,3.65722]
[1724436405736,0.95318,2735.2,2733.8,0.55]
[1724436405737,3.95318,2735.2,2734.2,3.65724]
[1724436406143,7.60924,2735.2,2734.0,3.65759]
[1724436406339,3.65642,2735.0,2733.6,3.65807]
[1724436406539,12.5721,2734.9,2733.7,3.65803]
[1724436406742,1.988495,2734.8,2733.6,3.65807]
[1724436406982,9.243,2734.7,2733.6,3.65807]
[1724436407283,6.65685,2734.6,2733.4,3.6584]
[1724436407441,3.0,2734.6,2733.5,3.65822]
[1724436407646,3.0,2734.6,2733.1,13.5636]
[1724436407873,3.0,2734.6,2733.9,3.6577]
[1724436408074,3.0,2734.6,2733.7,3.65796]
[1724436408257,3.0,2734.6,2733.5,3.65826]
[1724436408944,13.14178,2734.5,2733.3,0.1301956]
[1724436409161,3.65726,2734.3,2733.3,0.1301956]
[1724436409359,4.314206,2734.2,2733.3,0.1301956]
[1724436409683,9.3409,2734.1,2733.3,0.1301956]
[1724436409869,12.3409,2734.1,2733.3,0.1301956]
[1724436410181,3.0,2734.0,2733.3,0.1301956]
[1724436410763,6.65766,2734.0,2733.3,0.1301956]
[1724436410967,1.599856,2733.9,2733.3,0.1301956]
[1724436411207,9.3167,2733.8,2733.3,0.1301956]
[1724436411504,9.5415,2733.4,2733.3,0.1301956]
[1724436412006,12.5415,2733.4,2733.3,0.1301956]
[1724436413166,16.19994,2733.4,2733.3,0.1301956]
[1724436413372,12.5415,2733.4,2733.3,0.1301956]
[1724436414283,16.19994,2733.4,2733.3,0.1301956]
[1724436414500,16.19994,2733.4,2731.2,9.9514]
[1724436414501,4.985812,2733.4,2731.2,9.9514]
[1724436414699,3.6588,2733.2,2731.9,3.66035]
[1724436415014,3.0,2733.3,2732.3,3.65979]
[1724436415168,3.0,2733.3,2732.4,3.65977]
[1724436415368,3.65803,2733.8,2732.4,3.65977]
[1724436415369,6.65818,2733.6,2732.4,3.65977]
[1724436415574,6.65818,2733.6,2732.2,3.66004]
[1724436415575,3.65855,2733.4,2732.2,3.66004]
[1724436415819,3.65855,2733.4,2731.9,3.66041]
[1724436415820,3.65883,2733.2,2731.9,3.66041]
[1724436416019,3.65901,2733.0,2731.8,3.66049]
[1724436416228,9.2993,2732.9,2731.8,3.66049]
[1724436416428,3.0,2732.8,2731.9,0.55]